[Event "98th Caplin Hastings Masters 2024-25"]
[Site "Hastings"]
[Date "2024.12.31"]
[Round "5.18"]
[White "Patel, Zain"]
[Black "Samarasinghe Jude, Ranga"]
[Result "0-1"]
[ECO "A10"]
[WhiteElo "2099"]
[BlackElo "1944"]
[Annotator "NA RC"]
[PlyCount "90"]
[EventDate "2024.12.23"]
[EventType "swiss"]
[EventCountry "ENG"]
[SourceTitle "playchess.com"]
[Source "ChessBase"]
[SourceQuality "1"]
[TimeControl "5400+30"]

1. Nf3 {[%emt 0:05:10]} e6 {[%emt 0:00:25]} 2. c4 {[%emt 0:01:32]} d5 {[%emt 0:00:18]} 3. g3 {[%emt 0:01:53]} c6 {[%emt 0:00:20]} 4. Bg2 {[%emt 0:00:24]} f5 {[%emt 0:00:05]} 5. O-O {[%emt 0:01:17]} Nf6 {[%emt 0:00:06]} 6. d3 {[%emt 0:01:08]} Bc5 {[%emt 0:00:46]} 7. Nc3 {[%emt 0:05:04]} d4 {[%emt 0:01:15]} 8. Nb1 {[%emt 0:02:23]} Nbd7 {[%emt 0:02:00]} 9. b4 {[%emt 0:07:04]} Bxb4 {[%emt 0:00:14]} 10. Nxd4 {[%emt 0:01:06]} Qe7 {[%emt 0:08:27]} 11. Bb2 {[%emt 0:11:06]} O-O {[%emt 0:01:19]} 12. Qb3 {[%emt 0:02:06]} Bc5 {[%emt 0:01:58]} 13. Nd2 {[%emt 0:04:29]} Ne5 {[%emt 0:01:49]} 14. Nc2 {[%emt 0:06:50]} Nf7 {[%emt 0:08:27]} 15. Rad1 {[%emt 0:14:00]} e5 {[%emt 0:08:24]} 16. Nf3 {[%emt 0:06:12]} Bd6 {[%emt 0:05:10]} 17. Rfe1 {[%emt 0:04:24]} Be6 {[%emt 0:21:22]} 18. Bc3 {[%emt 0:05:19]} Rae8 {[%emt 0:02:15]} 19. Qb2 {[%emt 0:00:40]} Bc8 {[%emt 0:00:54]} 20. e4 {[%emt 0:02:42]} fxe4 {[%emt 0:01:43]} 21. dxe4 {[%emt 0:00:15]} Ng4 {[%emt 0:01:40]} 22. h3 {[%emt 0:01:39]} Nxf2 {[%emt 0:07:15]} 23. Kxf2 {[%emt 0:00:51]} Bc5+ {[%emt 0:00:07]} 24. Ke2 {[%emt 0:03:05]} Ng5 {[%emt 0:00:18]} 25. Nb4 {[%emt 0:03:50]} Bxh3 {[%emt 0:03:35]} 26. Bxh3 {[%emt 0:01:13]} Rxf3 {[%emt 0:00:12]} 27. Nd3 {[%emt 0:00:59]} Ref8 {[%emt 0:08:30]} 28. Bf5 {[%emt 0:00:49]} g6 {[%emt 0:05:18]} 29. Bxe5 {[%emt 0:02:55]} gxf5 {[%emt 0:01:23]} 30. Nxc5 {[%emt 0:00:50]} Qxc5 {[%emt 0:01:33]} 31. Rd7 {[%emt 0:01:34]} Qxc4+ {[%emt 0:02:39]} 32. Kd2 {[%emt 0:00:50]} Nf7 {[%emt 0:01:44]} 33. Re2 {[%emt 0:01:05]} Qe6 {[%emt 0:00:58]} 34. Rd4 {[%emt 0:02:08]} Qxe5 {[%emt 0:01:46]} 35. exf5 {[%emt 0:00:15]} Qa5+ {[%emt 0:00:41]} 36. Qb4 {[%emt 0:00:46]} Qxa2+ {[%emt 0:00:37]} 37. Ke1 {[%emt 0:00:12]} Qa1+ {[%emt 0:00:47]} 38. Kd2 {[%emt 0:00:40]} Rxg3 {[%emt 0:00:37]} 39. f6 {[%emt 0:00:01]} Qg1 {[%emt 0:00:28]} 40. Rde4 {[%emt 0:00:08]} c5 {[%emt 0:00:50]} 41. Qxb7 {[%emt 0:01:01]} Rg2 {[%emt 0:00:40]} 42. Qe7 {[%emt 0:00:53]} Rd8+ {[%emt 0:00:32]} 43. Kc2 {[%emt 0:00:39]} Qd1+ {[%emt 0:00:18]} 44. Kc3 {[%emt 0:00:02]} Qd3+ {[%emt 0:00:21]} 45. Kb2 {[%emt 0:00:02]} Rb8+ {[%emt 0:00:09]} 0-1

[Event "98th Caplin Hastings Masters 2024-25"]
[Site "Hastings"]
[Date "2024.12.31"]
[Round "5.19"]
[White "Sasikumar, Srivathsan"]
[Black "Badacsonyi, Frankie"]
[Result "0-1"]
[ECO "B92"]
[WhiteElo "1904"]
[BlackElo "2218"]
[Annotator "NA RC"]
[PlyCount "80"]
[EventDate "2024.12.23"]
[EventType "swiss"]
[EventCountry "ENG"]
[SourceTitle "playchess.com"]
[Source "ChessBase"]
[SourceQuality "1"]
[TimeControl "5400+30"]

1. e4 {[%emt 0:00:13]} c5 {[%emt 0:00:19]} 2. Nf3 {[%emt 0:00:18]} d6 {[%emt 0:00:29]} 3. d4 {[%emt 0:00:12]} cxd4 {[%emt 0:00:10]} 4. Nxd4 {[%emt 0:00:05]} Nf6 {[%emt 0:00:07]} 5. Nc3 {[%emt 0:00:30]} a6 {[%emt 0:00:39]} 6. Be2 {[%emt 0:02:24]} e5 {[%emt 0:00:21]} 7. Nf3 {[%emt 0:01:27]} Be7 {[%emt 0:00:37]} 8. O-O {[%emt 0:02:15]} Be6 {[%emt 0:01:59]} 9. Ng5 {[%emt 0:03:58]} Bd7 {[%emt 0:01:29]} 10. Be3 {[%emt 0:20:33]} h6 {[%emt 0:01:35]} 11. Nf3 {[%emt 0:01:18]} Be6 {[%emt 0:00:54]} 12. h3 {[%emt 0:03:50]} Nbd7 {[%emt 0:02:34]} 13. Nd2 {[%emt 0:09:02]} b5 {[%emt 0:06:25]} 14. a3 {[%emt 0:00:36]} Qc7 {[%emt 0:08:13]} 15. f4 {[%emt 0:06:48]} exf4 {[%emt 0:01:56]} 16. Bxf4 {[%emt 0:00:13]} Ne5 {[%emt 0:00:50]} 17. Qe1 {[%emt 0:02:16]} Qc5+ {[%emt 0:06:29]} 18. Kh1 {[%emt 0:00:58]} Ng6 {[%emt 0:00:41]} 19. Bg3 {[%emt 0:01:50]} O-O {[%emt 0:00:39]} 20. Nf3 {[%emt 0:01:21]} Rac8 {[%emt 0:09:32]} 21. Rd1 {[%emt 0:02:02]} Rfe8 {[%emt 0:19:16]} 22. Nd4 {[%emt 0:07:43]} Bf8 {[%emt 0:04:30]} 23. Bf2 {[%emt 0:10:16]} Qc7 {[%emt 0:01:30]} 24. Bg3 {[%emt 0:05:07]} Qb7 {[%emt 0:02:21]} 25. Qd2 {[%emt 0:03:28]} Bc4 {[%emt 0:13:23]} 26. Bd3 {[%emt 0:01:25]} b4 {[%emt 0:01:08]} 27. axb4 {[%emt 0:02:58]} Qxb4 {[%emt 0:00:39]} 28. Bxc4 {[%emt 0:01:15]} Rxc4 {[%emt 0:00:19]} 29. Qd3 {[%emt 0:02:12]} Rec8 {[%emt 0:02:27]} 30. Nf5 {[%emt 0:05:49]} Qxb2 {[%emt 0:01:38]} 31. Nd5 {[%emt 0:01:30]} Nxe4 {[%emt 0:00:30]} 32. Nde3 {[%emt 0:01:18]} Nxg3+ {[%emt 0:00:38]} 33. Nxg3 {[%emt 0:00:06]} Rc3 {[%emt 0:03:37]} 34. Qd4 {[%emt 0:01:10]} Qb5 {[%emt 0:00:40]} 35. Ne4 {[%emt 0:00:45]} R3c6 {[%emt 0:01:11]} 36. Nf5 {[%emt 0:00:43]} Qe5 {[%emt 0:00:44]} 37. Qd3 {[%emt 0:00:31]} Rxc2 {[%emt 0:00:55]} 38. Nfxd6 {[%emt 0:00:32]} Bxd6 {[%emt 0:00:17]} 39. Nxd6 {[%emt 0:00:03]} R8c3 {[%emt 0:00:40]} 40. Qxa6 {[%emt 0:00:52]} Rxh3+ {[%emt 0:00:10]} 0-1

[Event "98th Caplin Hastings Masters 2024-25"]
[Site "Hastings"]
[Date "2024.12.31"]
[Round "5.20"]
[White "Brewer, Callum D"]
[Black "Pick, Freddie"]
[Result "1/2-1/2"]
[ECO "B31"]
[WhiteElo "2151"]
[BlackElo "1874"]
[Annotator "NA RC"]
[PlyCount "63"]
[EventDate "2024.12.23"]
[EventType "swiss"]
[EventCountry "ENG"]
[SourceTitle "playchess.com"]
[Source "ChessBase"]
[SourceQuality "1"]
[TimeControl "5400+30"]

1. e4 {[%emt 0:00:02]} c5 {[%emt 0:00:26]} 2. Nf3 {[%emt 0:00:12]} Nc6 {[%emt 0:00:05]} 3. Bb5 {[%emt 0:00:04]} g6 {[%emt 0:00:05]} 4. Bxc6 {[%emt 0:00:47]} dxc6 {[%emt 0:00:06]} 5. d3 {[%emt 0:00:44]} Bg7 {[%emt 0:00:08]} 6. h3 {[%emt 0:00:08]} Nf6 {[%emt 0:00:05]} 7. a4 {[%emt 0:00:12]} a5 {[%emt 0:00:57]} 8. Be3 {[%emt 0:00:42]} Nd7 {[%emt 0:02:04]} 9. Qc1 {[%emt 0:01:00]} e5 {[%emt 0:01:25]} 10. Bh6 {[%emt 0:10:00]} Qf6 {[%emt 0:06:17]} 11. Na3 {[%emt 0:07:31]} b6 {[%emt 0:16:36]} 12. Nh2 {[%emt 0:15:58]} Bxh6 {[%emt 0:11:53]} 13. Qxh6 {[%emt 0:00:13]} Qf4 {[%emt 0:00:19]} 14. Qg7 {[%emt 0:11:55]} Qf6 {[%emt 0:00:55]} 15. Qh6 {[%emt 0:00:01]} Qf4 {[%emt 0:00:07]} 16. Qg7 {[%emt 0:00:40]} Qf6 {[%emt 0:00:05]} 17. Qxf6 {[%emt 0:00:02]} Nxf6 {[%emt 0:00:05]} 18. Nc4 {[%emt 0:00:09]} Nd7 {[%emt 0:01:20]} 19. Ng4 {[%emt 0:00:59]} f6 {[%emt 0:01:49]} 20. O-O {[%emt 0:00:03]} Ba6 {[%emt 0:06:19]} 21. Nge3 {[%emt 0:01:06]} Ke7 {[%emt 0:02:07]} 22. g3 {[%emt 0:06:58]} Bxc4 {[%emt 0:07:16]} 23. Nxc4 {[%emt 0:00:44]} Ke6 {[%emt 0:01:05]} 24. f4 {[%emt 0:02:23]} Rhf8 {[%emt 0:01:27]} 25. Rf2 {[%emt 0:02:34]} Ke7 {[%emt 0:03:28]} 26. Kh2 {[%emt 0:05:36]} h5 {[%emt 0:06:22]} 27. Kg2 {[%emt 0:05:10]} Rg8 {[%emt 0:02:52]} 28. Raf1 {[%emt 0:04:12]} Rgf8 {[%emt 0:04:21]} 29. Kh2 {[%emt 0:05:58]} b5 {[%emt 0:00:47]} 30. axb5 {[%emt 0:00:44]} cxb5 {[%emt 0:00:02]} 31. Ne3 {[%emt 0:00:13]} Nb6 {[%emt 0:01:22]} 32. b3 {[%emt 0:07:29]} 1/2-1/2

[Event "98th Caplin Hastings Masters 2024-25"]
[Site "Hastings"]
[Date "2024.12.31"]
[Round "5.21"]
[White "Kim, Yegeon"]
[Black "Brown, Tom"]
[Result "0-1"]
[ECO "B15"]
[WhiteElo "1697"]
[BlackElo "1932"]
[Annotator "NA RC"]
[PlyCount "90"]
[EventDate "2024.12.23"]
[EventType "swiss"]
[EventCountry "ENG"]
[SourceTitle "playchess.com"]
[Source "ChessBase"]
[SourceQuality "1"]
[TimeControl "5400+30"]

1. e4 {[%emt 0:00:17]} c6 {[%emt 0:00:06]} 2. d4 {[%emt 0:00:06]} d5 {[%emt 0:00:04]} 3. Nc3 {[%emt 0:00:01]} dxe4 {[%emt 0:03:40]} 4. Nxe4 {[%emt 0:00:23]} Nf6 {[%emt 0:00:06]} 5. Nxf6+ {[%emt 0:00:11]} exf6 {[%emt 0:00:13]} 6. c3 {[%emt 0:00:03]} Bd6 {[%emt 0:02:25]} 7. Bd3 {[%emt 0:00:15]} O-O {[%emt 0:00:34]} 8. Qc2 {[%emt 0:00:43]} Re8+ {[%emt 0:01:13]} 9. Ne2 {[%emt 0:00:05]} f5 {[%emt 0:01:08]} 10. Bxf5 {[%emt 0:08:32]} Bxf5 {[%emt 0:00:07]} 11. Qxf5 {[%emt 0:00:11]} Nd7 {[%emt 0:00:13]} 12. Be3 {[%emt 0:01:50]} Nb6 {[%emt 0:00:13]} 13. Qd3 {[%emt 0:25:42]} Nd5 {[%emt 0:03:40]} 14. O-O {[%emt 0:03:44]} Qe7 {[%emt 0:01:42]} 15. Rae1 {[%emt 0:10:41]} Nxe3 {[%emt 0:00:18]} 16. fxe3 {[%emt 0:00:29]} Qxe3+ {[%emt 0:00:11]} 17. Qxe3 {[%emt 0:00:02]} Rxe3 {[%emt 0:00:11]} 18. Nc1 {[%emt 0:03:24]} Rae8 {[%emt 0:03:50]} 19. Rxe3 {[%emt 0:04:01]} Rxe3 {[%emt 0:00:07]} 20. Kf2 {[%emt 0:06:32]} Re6 {[%emt 0:01:22]} 21. g3 {[%emt 0:03:32]} g5 {[%emt 0:02:50]} 22. Nb3 {[%emt 0:03:10]} b6 {[%emt 0:03:27]} 23. a4 {[%emt 0:06:05]} Kg7 {[%emt 0:03:14]} 24. a5 {[%emt 0:07:24]} Kg6 {[%emt 0:01:35]} 25. axb6 {[%emt 0:02:44]} axb6 {[%emt 0:00:07]} 26. Nd2 {[%emt 0:01:38]} Rf6+ {[%emt 0:03:12]} 27. Kg2 {[%emt 0:05:26]} Rxf1 {[%emt 0:00:07]} 28. Kxf1 {[%emt 0:01:10]} Kf5 {[%emt 0:01:52]} 29. Kg2 {[%emt 0:00:27]} g4 {[%emt 0:05:55]} 30. h3 {[%emt 0:02:53]} h5 {[%emt 0:05:11]} 31. hxg4+ {[%emt 0:00:37]} hxg4 {[%emt 0:00:36]} 32. Kf2 {[%emt 0:01:29]} Bc7 {[%emt 0:01:09]} 33. Kg2 {[%emt 0:00:43]} b5 {[%emt 0:03:28]} 34. Kf2 {[%emt 0:01:21]} Bd6 {[%emt 0:06:23]} 35. b4 {[%emt 0:01:35]} Bc7 {[%emt 0:04:47]} 36. Kg2 {[%emt 0:00:27]} Ke6 {[%emt 0:03:29]} 37. Kf2 {[%emt 0:01:07]} Kd5 {[%emt 0:00:22]} 38. Nb3 {[%emt 0:00:00]} Kc4 {[%emt 0:03:34]} 39. Na5+ {[%emt 0:00:01]} Kxc3 {[%emt 0:00:24]} 40. Nxc6 {[%emt 0:00:02]} Kc4 {[%emt 0:01:25]} 41. Kg2 {[%emt 0:01:26]} f6 {[%emt 0:02:28]} 42. Kf2 {[%emt 0:00:23]} Bd6 {[%emt 0:00:09]} 43. Na7 {[%emt 0:00:37]} Bxb4 {[%emt 0:00:47]} 44. Ke3 {[%emt 0:00:28]} Bd6 {[%emt 0:00:18]} 45. Nc8 {[%emt 0:00:30]} Bc7 {[%emt 0:01:58]} 0-1

[Event "98th Caplin Hastings Masters 2024-25"]
[Site "Hastings"]
[Date "2024.12.31"]
[Round "5.22"]
[White "Zhang, Junyi"]
[Black "Lucas, Arthur"]
[Result "1/2-1/2"]
[ECO "B55"]
[WhiteElo "2070"]
[BlackElo "2335"]
[Annotator "TA"]
[PlyCount "235"]
[EventDate "2024.12.23"]
[EventType "swiss"]
[EventCountry "ENG"]
[SourceTitle "playchess.com"]
[Source "ChessBase"]
[SourceQuality "1"]
[TimeControl "5400+30"]

{[%evp 105,235,-18,-11,-11,-11,-11,-11,-11,-8,-10,0,0,0,-11,0,0,0,0,0,0,0,0,0,0,0,0,0,0,0,0,0,0,0,0,0,0,0,0,0,0,0,0,0,0,0,0,0,0,0,0,0,0,0,0,0,0,0,0,0,0,0,0,0,0,0,0,0,0,0,0,0,0,0,0,0,0,0,-5,-5,-5,-1,0,0,0,0,0,0,0,0,0,0,-6,0,-5,0,-6,0,0,0,0,0,0,0,0,0,-5,-5,-5,-5,-5,-5,-5,-5,-5,-5,-5,-5,-5,-5,-5,-5,-5,-5,-5,-5,-5,0,0,0,0,0,0]} 1. e4 {[%emt 0:00:08]} c5 {[%emt 0:07:14]} 2. Nf3 {[%emt 0:00:17]} d6 {[%emt 0:00:05]} 3. d4 {[%emt 0:00:09]} cxd4 {[%emt 0:00:04]} 4. Nxd4 {[%emt 0:00:06]} Nf6 {[%emt 0:00:03]} 5. f3 {[%emt 0:00:21]} e5 {[%emt 0:00:07]} 6. Nb3 {[%emt 0:00:04]} d5 {[%emt 0:00:14]} 7. Bg5 {[%emt 0:00:08]} d4 {[%emt 0:00:11]} 8. c3 {[%emt 0:00:05]} Nc6 {[%emt 0:00:08]} 9. cxd4 {[%emt 0:00:15]} Bb4+ {[%emt 0:00:12]} 10. Bd2 {[%emt 0:00:10]} Nxe4 {[%emt 0:00:25]} 11. Bxb4 {[%emt 0:00:07]} Qh4+ {[%emt 0:00:02]} 12. g3 {[%emt 0:00:09]} Nxg3 {[%emt 0:00:05]} 13. hxg3 {[%emt 0:00:03]} Qxh1 {[%emt 0:00:06]} 14. Bc5 {[%emt 0:00:55]} Bh3 {[%emt 0:00:20]} 15. N1d2 {[%emt 0:00:15]} O-O-O {[%emt 0:01:03]} 16. Qc2 {[%emt 0:00:07]} Bxf1 {[%emt 0:00:30]} 17. O-O-O {[%emt 0:00:24]} Qh6 {[%emt 0:00:02]} 18. Rxf1 {[%emt 0:00:09]} b6 {[%emt 0:02:31]} 19. Qf5+ {[%emt 0:03:19]} Kb8 {[%emt 0:03:09]} 20. Ba3 {[%emt 0:01:46]} exd4 {[%emt 0:00:47]} 21. Qxf7 {[%emt 0:00:37]} Ne5 {[%emt 0:00:14]} 22. Qf4 {[%emt 0:00:25]} Qxf4 {[%emt 0:00:14]} 23. gxf4 {[%emt 0:00:01]} Nd3+ {[%emt 0:00:17]} 24. Kc2 {[%emt 0:00:45]} Nxf4 {[%emt 0:00:14]} 25. Ne4 {[%emt 0:00:49]} Kc7 {[%emt 0:13:11]} 26. Kd2 {[%emt 0:08:16]} Rd5 {[%emt 0:01:32]} 27. Nc1 {[%emt 0:08:37]} d3 {[%emt 0:08:53]} 28. Rg1 {[%emt 0:10:51]} Ne6 {[%emt 0:02:12]} 29. Ke3 {[%emt 0:12:44]} Rhd8 {[%emt 0:01:59]} 30. Bb4 {[%emt 0:01:40]} g6 {[%emt 0:04:22]} 31. Bc3 {[%emt 0:04:49]} Kc6 {[%emt 0:13:38]} 32. Rd1 {[%emt 0:04:21]} d2 {[%emt 0:02:41]} 33. Rxd2 {[%emt 0:01:30]} Rxd2 {[%emt 0:00:10]} 34. Nxd2 {[%emt 0:00:24]} Nc5 {[%emt 0:00:20]} 35. Ncb3 {[%emt 0:00:50]} Re8+ {[%emt 0:04:06]} 36. Ne4 {[%emt 0:01:26]} Nxb3 {[%emt 0:08:16]} 37. axb3 {[%emt 0:00:10]} Kd5 {[%emt 0:00:17]} 38. Kd3 {[%emt 0:01:31]} Re7 {[%emt 0:02:53]} 39. Ke3 {[%emt 0:01:39]} Ke6 {[%emt 0:01:38]} 40. Kf4 {[%emt 0:01:04]} h6 {[%emt 0:02:10]} 41. Kg4 {[%emt 0:02:54]} Rf7 {[%emt 0:04:20]} 42. Kg3 {[%emt 0:11:07]} Rd7 {[%emt 0:08:32]} 43. Kg4 {[%emt 0:01:05]} Rd1 {[%emt 0:01:08]} 44. Bg7 {[%emt 0:06:15]} Rg1+ {[%emt 0:00:49]} 45. Kh3 {[%emt 0:00:57]} h5 {[%emt 0:05:21]} 46. Bc3 {[%emt 0:01:17]} Rd1 {[%emt 0:03:02]} 47. Nf2 {[%emt 0:03:19]} Rf1 {[%emt 0:01:57]} 48. Kg2 {[%emt 0:00:06]} Rb1 {[%emt 0:00:14]} 49. Ne4 {[%emt 0:00:05]} Rd1 {[%emt 0:00:47]} 50. Nf2 {[%emt 0:00:21]} Rd5 {[%emt 0:00:20]} 51. Ne4 {[%emt 0:00:17]} Rb5 {[%emt 0:02:12]} 52. b4 {[%emt 0:01:01]} Rd5 {[%emt 0:00:41]} 53. Kf2 {[%emt 0:01:05]} Rf5 {[%emt 0:00:29]} 54. Ng3 {[%emt 0:00:38]} Rf8 {[%emt 0:00:23]} 55. Ne4 {[%emt 0:00:02]} Kf5 {[%emt 0:00:27]} 56. Ng3+ {[%emt 0:00:25]} Kg5 {[%emt 0:00:19]} 57. Ne4+ {[%emt 0:00:19]} Kf5 {[%emt 0:00:32]} 58. Ng3+ {[%emt 0:00:48]} Ke6 {[%emt 0:00:13]} 59. Ne4 {[%emt 0:00:07]} h4 {[%emt 0:01:02]} 60. Kg2 {[%emt 0:00:32]} Kf5 {[%emt 0:00:17]} 61. Bd2 {[%emt 0:01:23]} Rd8 {[%emt 0:00:48]} 62. Kh3 {[%emt 0:01:01]} Rd3 {[%emt 0:00:23]} 63. Kxh4 {[%emt 0:00:18]} Rxf3 {[%emt 0:00:16]} 64. Ng3+ {[%emt 0:00:04]} Ke6 {[%emt 0:00:37]} 65. Kg4 {[%emt 0:00:11]} Rf2 {[%emt 0:00:33]} 66. Bc3 {[%emt 0:00:09]} Kd5 {[%emt 0:00:41]} 67. Nh1 {[%emt 0:01:30]} Rg2+ {[%emt 0:00:23]} 68. Kf3 {[%emt 0:00:08]} Rh2 {[%emt 0:00:32]} 69. Nf2 {[%emt 0:00:11]} Ke6 {[%emt 0:00:21]} 70. Kg3 {[%emt 0:00:14]} Rh5 {[%emt 0:00:28]} 71. Ne4 {[%emt 0:00:36]} Rf5 {[%emt 0:00:46]} 72. Kg4 {[%emt 0:00:20]} Rf1 {[%emt 0:00:11]} 73. Nd2 {[%emt 0:00:24]} Rg1+ {[%emt 0:00:07]} 74. Kf3 {[%emt 0:00:06]} Kf5 {[%emt 0:00:17]} 75. Nc4 {[%emt 0:00:53]} g5 {[%emt 0:01:05]} 76. Ne3+ {[%emt 0:00:10]} Kg6 {[%emt 0:00:07]} 77. Kf2 {[%emt 0:01:37]} Rh1 {[%emt 0:00:12]} 78. Kg2 {[%emt 0:00:27]} Rh7 {[%emt 0:00:55]} 79. Kg3 {[%emt 0:00:27]} Re7 {[%emt 0:01:00]} 80. Nc4 {[%emt 0:01:14]} Kh5 {[%emt 0:00:26]} 81. Ne5 {[%emt 0:00:29]} Rc7 {[%emt 0:00:40]} 82. Ng4 {[%emt 0:00:48]} Rf7 {[%emt 0:00:23]} 83. Nf6+ {[%emt 0:00:16]} Kg6 {[%emt 0:00:05]} 84. Ng4 {[%emt 0:15:28]} Rf1 {[%emt 0:00:09]} 85. Ne3 {[%emt 0:00:00]} Rg1+ {[%emt 0:00:15]} 86. Kf2 {[%emt 0:00:00]} Rb1 {[%emt 0:00:34]} 87. Kg3 {[%emt 0:00:00]} Kh5 {[%emt 0:00:11]} 88. Nd5 {[%emt 0:00:00]} Rg1+ {[%emt 0:00:12]} 89. Kf2 {[%emt 0:00:00]} Rd1 {[%emt 0:00:16]} 90. Ne3 {[%emt 0:00:00]} Rd3 {[%emt 0:00:49]} 91. Nc4 {[%emt 0:00:00]} Kh4 {[%emt 0:00:24]} 92. Ne5 {[%emt 0:00:00]} Rd5 {[%emt 0:01:39]} 93. Kg2 {[%emt 0:00:00]} g4 {[%emt 0:00:59]} 94. Nc6 {[%emt 0:00:00]} Rd7 {[%emt 0:00:34]} 95. Ne5 {[%emt 0:01:07]} Rd1 {[%emt 0:00:14]} 96. Nc6 {[%emt 0:00:29]} Ra1 {[%emt 0:00:42]} 97. Bf6+ {[%emt 0:00:34]} Kh5 {[%emt 0:00:05]} 98. Kg3 {[%emt 0:00:45]} Rg1+ {[%emt 0:00:57]} 99. Kf2 {[%emt 0:00:45]} Ra1 {[%emt 0:00:26]} 100. Kg3 {[%emt 0:00:04]} Rf1 {[%emt 0:00:36]} 101. Bc3 {[%emt 0:00:41]} Rf3+ {[%emt 0:00:08]} 102. Kg2 {[%emt 0:00:18]} Rf7 {[%emt 0:00:07]} 103. Kg3 {[%emt 0:00:14]} Rf3+ {[%emt 0:00:10]} 104. Kg2 {[%emt 0:00:04]} a6 {[%emt 0:00:29]} 105. Nb8 {[%emt 0:00:44]} a5 {[%emt 0:00:26]} 106. bxa5 {[%emt 0:00:23]} bxa5 {[%emt 0:00:02]} 107. Bxa5 {[%emt 0:01:06]} Rb3 {[%emt 0:00:02]} 108. Nc6 {[%emt 0:00:56]} Rxb2+ {[%emt 0:00:06]} 109. Kg3 {[%emt 0:00:02]} Rb3+ {[%emt 0:00:33]} 110. Kg2 {[%emt 0:00:33]} Rd3 {[%emt 0:02:17]} 111. Be1 {[%emt 0:01:39]} Rd5 {[%emt 0:00:33]} 112. Bf2 {[%emt 0:00:18]} Rd2 {[%emt 0:00:52]} 113. Nd4 {[%emt 0:00:57]} Kg5 {[%emt 0:00:36]} 114. Kg3 {[%emt 0:01:01]} Rd3+ {[%emt 0:00:03]} 115. Kg2 {[%emt 0:00:04]} g3 {[%emt 0:01:01]} 116. Nf3+ {[%emt 0:00:30]} Rxf3 {[%emt 0:00:03]} 117. Kxf3 {[%emt 0:00:06]} gxf2 {[%emt 0:00:02]} 118. Kxf2 {[%emt 0:00:32]} 1/2-1/2

[Event "98th Caplin Hastings Masters 2024-25"]
[Site "Hastings"]
[Date "2024.12.31"]
[Round "5.23"]
[White "Lux, Hugo de Melo"]
[Black "Byron, Alan M"]
[Result "1-0"]
[ECO "B15"]
[WhiteElo "2327"]
[BlackElo "2069"]
[Annotator "TA"]
[PlyCount "61"]
[EventDate "2024.12.23"]
[EventType "swiss"]
[EventCountry "ENG"]
[SourceTitle "playchess.com"]
[Source "ChessBase"]
[SourceQuality "1"]
[TimeControl "5400+30"]

{[%evp 9,61,26,25,-6,32,23,34,28,31,31,60,37,52,62,58,47,83,81,98,81,130,127,170,74,73,53,116,111,82,88,136,123,140,115,203,61,159,165,178,95,332,113,302,78,174,172,156,181,197,170,385,375,1561,1519]} 1. e4 {[%emt 0:06:08]} c6 {[%emt 0:00:24]} 2. d4 {[%emt 0:00:09]} d5 {[%emt 0:00:06]} 3. Nc3 {[%emt 0:00:05]} dxe4 {[%emt 0:00:14]} 4. Nxe4 {[%emt 0:00:04]} Nf6 {[%emt 0:00:36]} 5. Nxf6+ {[%emt 0:00:22]} exf6 {[%emt 0:00:06]} 6. Bd3 {[%emt 0:00:04]} Bd6 {[%emt 0:00:54]} 7. Qh5 {[%emt 0:00:07][%cal Oc2c3]} Be6 {[%emt 0:06:41]} 8. Ne2 {[%emt 0:00:07][%cal Oe1g1]} g6 {[%emt 0:03:11]} 9. Qh6 {[%emt 0:00:11]} Nd7 {[%emt 0:16:02]} 10. Qg7 {[%emt 0:08:38]} Ke7 {[%emt 0:00:32] and ...h5 should not be overlooked} 11. Qh6 $1 {[%emt 0:00:43]} Qf8 {[%emt 0:05:48]} 12. Qd2 {[%emt 0:01:04]} Qb8 {[%emt 0:07:09]} 13. c4 {[%emt 0:14:01][%cal Bc2c4,Bc4c5][%mdl 32]} Rd8 {[%emt 0:16:55]} 14. h4 {[%emt 0:19:34]} a5 {[%emt 0:04:14]} (14... b5 $142) 15. Qe3 $1 $16 {[%emt 0:08:07]} b5 {[%emt 0:15:18]} 16. O-O {[%emt 0:10:47]} (16. c5 $18 {is more deadly.}) 16... Kf8 {[%emt 0:06:55]} 17. c5 {[%emt 0:04:09]} Bc7 {[%emt 0:01:26]} (17... Bh2+ $14 18. Kh1 Bc7) 18. Be4 {[%emt 0:03:39]} Ra6 {[%emt 0:03:17]} 19. Qf3 {[%emt 0:09:10]} Qb7 {[%emt 0:01:24]} (19... Qc8 $142) 20. Bh6+ {[%emt 0:02:51]} Kg8 {[%emt 0:02:01]} 21. Nf4 $36 {[%emt 0:00:05][%mdl 2048] Keeping Black busy.} f5 {[%emt 0:04:19]} (21... Bxf4 $16 22. Qxf4 Qc8) 22. Bc2 {[%emt 0:02:52]} (22. Nxe6 $18 fxe6 23. Bc2) 22... Nf8 {[%emt 0:02:07] [#]} ({Better is} 22... Bxf4 $1 $14 23. Qxf4 Re8) 23. Rfe1 $1 {[%emt 0:02:46] White is more active.} Raa8 {[%emt 0:01:02] [#] Black is weak on the dark squares} 24. Rad1 {[%emt 0:00:57]} (24. d5 $1 $18 cxd5 (24... Bxd5 $2 25. Qc3 $18) 25. Rad1) 24... a4 $2 {[%emt 0:00:40]} (24... Bxf4 $16 25. Qxf4 Bxa2) 25. h5 $2 {[%emt 0:00:56]} (25. Nxe6 $18 Nxe6 26. Bxf5 gxf5 (26... Nxd4 $2 27. Rxd4 Rxd4 28. Qe3 $18) 27. Qxf5) 25... Bd5 $2 {[%emt 0:01:04]} (25... Bxf4 $16 {was called for.} 26. Qxf4 (26. Bxf4 Bxa2 27. Qg3 b4 $16) 26... Re8) 26. Qg3 $2 {[%emt 0:01:37]} (26. Nxd5 $18 {is the precise move to win.} Rxd5 27. g4 (27. Re7 $2 Bh2+ 28. Kxh2 Qxe7 $19)) 26... Ne6 {[%emt 0:00:27]} (26... Bxa2 $16 27. hxg6 (27. Bxf5 Re8 $16) 27... hxg6) 27. Bxf5 $18 {[%emt 0:02:41][%cal Rh5g6]} Nxf4 {[%emt 0:00:25]} (27... Bxa2 $2 28. hxg6 (28. Bxe6 Bxf4 29. Qxf4 fxe6 $18) 28... Bxf4 29. gxh7+ (29. Bxf4 hxg6 30. Be5 Ng7 $18) 29... Kh8 30. Bxf4 Nxf4 31. Qxf4 $18) 28. Bxf4 {[%emt 0:00:02]} Bxf4 {[%emt 0:00:20]} 29. Qxf4 {[%emt 0:00:02][%cal Of4h4] Strongly threatening Qh4!.} Bxa2 $2 {[%emt 0:00:35]} (29... gxf5 $2 {is the wrong capture.} 30. Qg5+ Kf8 31. Qh6+ Kg8 32. Rd3 $18) (29... Re8 30. Bg4 f5) 30. h6 {[%emt 0:00:53][%cal Of5c8] White wants to mate with Bc8!.} Re8 $2 {[%emt 0:00:17]} ({Stronger than} 30... gxf5 31. Qg5+ Kh8 32. Qg7#) (30... Qb8 31. Re5 Rd5 (31... f6 $2 32. Be6+ Bxe6 33. Qxf6 $18)) 31. Bb1 {[%emt 0:00:53]} 1-0